bitfinex-derivatives/quotes_ETHF0:USTF0_20250607
["timestamp","ask_amount","ask_price","bid_price","bid_amount"]
[1749267037573,0.80247,2490.4,2490.3,4.92001655]
[1749267037769,0.80247,2490.4,2490.3,0.00401655]
[1749267038467,2.14421,2490.7,2490.5,0.80243]
[1749267038671,1.3418,2490.7,2490.3,0.00401655]
[1749267038870,0.80247,2490.4,2490.3,1.36911655]
[1749267039071,0.80247,2490.4,2490.3,0.00401655]
[1749267053877,2.08777,2490.4,2490.3,0.00401655]
[1749267070097,3.12281161,2490.4,2490.3,0.00401655]
[1749267070293,0.8026,2490.0,2489.9,3.2078]
[1749267075302,0.80273,2489.6,2489.5,3.8412]
[1749267075502,0.80273,2489.6,2489.5,3.2078]
[1749267075697,0.80276,2489.5,2489.4,0.6857]
[1749267077706,0.8028,2489.4,2489.3,5.5444]
[1749267078201,0.8028,2489.4,2489.3,4.911]
[1749267078805,0.80283,2489.3,2489.2,3.2078]
[1749267079598,3.2078,2489.3,2488.7,9.4708]
[1749267080003,3.2078,2489.3,2488.8,2.15319]
[1749267080211,3.2078,2489.3,2488.8,1.3502]
[1749267080508,0.80292,2489.1,2488.8,2.15318]
[1749267080704,0.80292,2489.1,2489.0,3.2078]
[1749267081405,0.80292,2489.1,2489.0,3.86]
[1749267082712,0.80299,2488.8,2488.7,8.1198]
[1749267086704,0.6835,2489.0,2488.7,8.1198]
[1749267087308,0.80299,2488.8,2488.7,8.1198]
[1749267088408,0.6835,2489.0,2488.7,8.1198]
[1749267088610,1.48645,2489.0,2488.8,0.80298]
[1749267088912,0.80296,2488.9,2488.7,8.1198]
[1749267089408,1.48645,2489.0,2488.8,0.80299]
[1749267089812,0.6835,2489.0,2488.7,9.4837]
[1749267090111,0.80291,2489.1,2488.7,9.4837]
[1749267090409,0.80291,2489.1,2489.0,3.2078]
[1749267091606,2.038,2489.3,2489.0,3.2078]
[1749267091607,0.6737,2489.3,2489.0,3.2078]
[1749267091905,4.91102482,2489.5,2489.0,3.2078]
[1749267091906,0.80281,2489.4,2489.2,0.80284]
[1749267092107,0.80284,2489.3,2489.1,1.43688]
[1749267092612,0.00602482,2489.5,2489.1,0.634]
[1749267092809,0.80283,2489.3,2489.1,1.43687]
[1749267093006,0.80284,2489.3,2489.1,0.634]
[1749267093205,0.00602482,2489.5,2489.1,0.634]
[1749267093407,0.00602482,2489.5,2489.3,3.2078]
[1749267093606,0.00602482,2489.5,2489.4,0.8028]
[1749267093802,0.00602482,2489.5,2489.4,1.4554]
[1749267094708,0.80878482,2489.5,2489.4,0.6526]
[1749267094916,0.00602482,2489.5,2489.4,0.6526]
[1749267095116,0.80878482,2489.5,2489.4,0.6526]
[1749267095308,0.00602482,2489.5,2489.4,1.4554]
[1749267095509,0.80878482,2489.5,2489.4,0.6526]
[1749267095709,0.00602482,2489.5,2489.4,1.4554]
[1749267095905,0.00602482,2489.5,2489.4,0.6526]
[1749267096107,0.00602482,2489.5,2489.4,1.4554]
[1749267096309,0.00602482,2489.5,2489.4,7.804]
[1749267096509,0.00602482,2489.5,2489.4,2.804]
[1749267096710,0.00602482,2489.5,2489.4,7.804]
[1749267097514,0.00602482,2489.5,2489.4,2.804]
[1749267099310,0.00602482,2489.5,2489.4,1.4554]
[1749267099512,0.00602482,2489.5,2489.4,0.6526]
[1749267099714,0.00602482,2489.5,2489.4,1.4554]
[1749267102619,0.80880482,2489.5,2489.3,4.01061]
[1749267102824,0.8028,2489.4,2489.3,3.2078]
[1749267104719,2.076,2489.4,2489.3,3.2078]
[1749267111817,0.8028,2489.4,2489.3,4.01063]
[1749267112015,0.8028,2489.4,2489.3,3.2078]
[1749267112915,0.70352482,2489.5,2489.3,3.2078]
[1749267113120,1.50630482,2489.5,2489.3,4.01061]
[1749267113423,0.8028,2489.4,2489.3,3.2078]
[1749267114225,0.00602482,2489.5,2489.4,0.8028]
[1749267114913,0.80878482,2489.5,2489.3,4.01061]
[1749267115820,0.80880482,2489.5,2489.4,0.8028]
[1749267116121,0.00602482,2489.5,2489.4,0.8028]
[1749267116622,0.80880482,2489.5,2489.3,4.01061]
[1749267119324,0.00602482,2489.5,2489.4,0.8028]
[1749267119622,0.80881482,2489.5,2489.3,4.01062]
[1749267119819,0.8028,2489.4,2489.3,4.01062]
[1749267120224,0.00602482,2489.5,2489.4,0.8028]
[1749267121329,0.00602482,2489.5,2489.3,3.2078]
[1749267121330,0.8028,2489.4,2489.3,3.2078]
[1749267122718,2.1454,2489.4,2489.3,3.2078]
[1749267123122,0.80293,2489.1,2488.9,0.80296]
[1749267123325,0.80293,2489.1,2489.0,4.896]
[1749267123525,1.48143,2489.0,2488.9,4.896]
[1749267127527,1.48143,2489.0,2488.7,3.2078]
[1749267127729,0.80299,2488.8,2488.7,3.2078]
[1749267128227,1.46299,2488.8,2488.7,3.2078]
[1749267129027,0.66,2488.8,2488.7,3.2078]
[1749267129232,0.66,2488.8,2488.7,4.01082]
[1749267130929,0.6785,2489.0,2488.9,0.80296]
[1749267131130,2.73834,2489.3,2489.1,0.80288]
[1749267131932,1.9355,2489.3,2488.7,5.9308]
[1749267132429,1.307,2489.2,2488.7,5.9308]
[1749267132629,2.10986,2489.2,2489.0,0.8029]
[1749267132830,2.10987,2489.2,2489.0,0.80291]
[1749267134536,0.80289,2489.1,2489.0,0.80291]
[1749267134831,0.80289,2489.1,2488.7,5.9308]
[1749267135032,0.8029,2489.1,2488.7,5.9308]
[1749267135232,1.307,2489.2,2488.7,5.9308]
[1749267135432,0.8029,2489.1,2488.9,0.80294]
[1749267135627,0.80292,2489.1,2488.9,0.80295]
[1749267135836,2.10988,2489.2,2489.0,0.80293]
[1749267136035,0.80291,2489.1,2489.0,0.80293]
[1749267136227,2.10988,2489.2,2489.0,0.80293]
[1749267136429,0.80289,2489.1,2489.0,0.80293]
[1749267136634,0.80289,2489.1,2488.9,0.80293]
[1749267136833,2.10988,2489.2,2489.0,0.80293]
[1749267137038,1.307,2489.2,2489.0,0.80293]
[1749267137339,0.6595,2489.3,2489.0,4.01073]
[1749267137540,0.80288,2489.2,2489.0,4.01073]
[1749267137837,0.80288,2489.2,2489.0,3.2078]
[1749267138038,0.80286,2489.2,2489.0,4.01071]
[1749267138237,0.80286,2489.2,2489.0,3.2078]
[1749267138439,0.80287,2489.2,2489.0,3.2078]
[1749267138636,0.6595,2489.3,2489.0,3.2078]
[1749267138637,0.80289,2489.1,2489.0,3.2078]
[1749267140241,0.80287,2489.2,2489.0,4.01073]
[1749267140438,0.6595,2489.3,2489.1,0.80288]
[1749267140638,1.954,2489.3,2489.1,0.80288]
[1749267140842,0.80287,2489.2,2489.0,3.2078]
[1749267141545,0.80287,2489.2,2489.0,4.0107]
[1749267142343,0.80289,2489.1,2489.0,3.2078]
[1749267143740,0.80289,2489.1,2489.0,4.01071]
[1749267143942,0.80287,2489.2,2489.0,4.01071]
[1749267144141,0.80289,2489.1,2489.0,4.01071]
[1749267144342,0.80289,2489.1,2489.0,3.2078]
[1749267146144,0.80295,2489.0,2488.8,0.80297]
[1749267146343,1.47485,2489.0,2488.8,0.80297]
[1749267147241,0.80296,2488.9,2488.8,0.80297]
[1749267147544,0.80296,2488.9,2488.7,2.13731]
[1749267147938,0.6719,2489.0,2488.7,1.45561]
[1749267147939,0.80299,2488.8,2488.7,1.45561]
[1749267148143,0.80299,2488.8,2488.7,0.80301]
[1749267148846,0.80298,2488.9,2488.7,0.80301]
[1749267149441,2.08448,2488.9,2488.7,0.80301]
[1749267150848,0.80299,2488.8,2488.6,8.1048]
[1749267151146,0.80302,2488.7,2488.6,4.897]
[1749267151845,2.20092,2488.7,2488.6,4.897]
[1749267153748,1.3979,2488.7,2488.4,24.284]
[1749267153945,0.80309,2488.5,2488.4,24.284]
[1749267154144,0.80309,2488.5,2488.4,29.173]
[1749267154646,0.80315,2488.3,2488.2,3.2078]
[1749267155150,0.80315,2488.3,2488.2,8.0968]
[1749267156253,0.80314,2488.4,2488.2,8.89998]
[1749267157954,0.80315,2488.3,2488.2,3.2078]
[1749267158153,0.80315,2488.3,2488.2,8.0968]
[1749267158356,0.80315,2488.3,2488.2,3.2078]
[1749267161055,0.80314,2488.4,2488.2,4.01097]
[1749267161255,2.0572,2488.3,2488.2,3.2078]
[1749267161453,2.0572,2488.3,2488.2,4.01098]
[1749267161956,2.0572,2488.3,2488.2,3.2078]
[1749267162257,2.86035,2488.3,2488.2,3.2078]
[1749267163558,2.0572,2488.3,2488.2,4.01098]
[1749267163753,0.80309,2488.5,2488.3,0.80312]
[1749267163955,1.3711,2488.5,2488.3,0.80312]
[1749267164355,0.80312,2488.4,2488.2,4.01096]
[1749267164656,0.80312,2488.4,2488.2,3.2078]
[1749267164856,1.3711,2488.5,2488.3,0.80314]
[1749267165057,1.3711,2488.5,2488.4,0.80312]
[1749267165455,1.3711,2488.5,2488.2,3.2078]
[1749267165656,0.80312,2488.4,2488.3,0.80314]
[1749267166053,0.80312,2488.4,2488.2,4.01096]
[1749267166763,0.80312,2488.4,2488.2,3.2078]
[1749267166953,1.3711,2488.5,2488.2,3.2078]
[1749267167760,0.80313,2488.4,2488.3,0.80314]
[1749267167960,1.3711,2488.5,2488.2,3.2078]
[1749267168156,2.17421,2488.5,2488.3,0.80314]
[1749267168357,0.80314,2488.4,2488.2,4.01097]
[1749267170253,1.3711,2488.5,2488.2,3.2078]
[1749267170459,2.1742,2488.5,2488.3,0.80313]
[1749267170961,0.8031,2488.5,2488.3,0.80314]
[1749267171161,1.49077,2488.6,2488.4,0.8031]
[1749267171761,1.49077,2488.6,2488.5,3.2078]
[1749267172657,4.89,2489.1,2488.5,3.2078]
[1749267172863,1.47907,2488.9,2488.7,0.80301]
[1749267173067,1.47907,2488.9,2488.5,3.2078]
[1749267173068,0.803,2488.8,2488.6,0.6519]
[1749267173364,0.80299,2488.8,2488.7,0.80301]
[1749267173569,0.6761,2488.9,2488.5,3.2078]
[1749267173769,0.8031,2488.5,2488.3,1.48613]
[1749267173968,0.8031,2488.5,2488.3,6.37613]
[1749267174568,1.2701,2488.8,2488.3,5.573]
[1749267174767,1.2701,2488.8,2488.3,5.69313]
[1749267174768,0.80309,2488.5,2488.3,5.69313]
[1749267175164,1.2701,2488.8,2488.2,6.33616]
[1749267175165,0.80312,2488.4,2488.2,6.33616]
[1749267175672,0.80316,2488.3,2488.2,4.89]
[1749267176467,0.80324,2488.1,2487.9,5.69327]
[1749267176877,0.80325,2488.0,2487.9,4.89]
[1749267178366,2.71544,2488.1,2487.9,5.69328]
[1749267178569,2.71544,2488.1,2487.9,4.89]
[1749267178971,0.00602482,2488.2,2488.1,0.80322]
[1749267179176,0.00602482,2488.2,2488.0,1.45623]
[1749267179379,0.00602482,2488.2,2488.1,0.80322]
[1749267179874,0.00602482,2488.2,2488.0,1.45623]
[1749267180574,0.00602482,2488.2,2488.1,0.80322]
[1749267180881,0.00602482,2488.2,2488.1,4.01102]
[1749267181377,0.00602482,2488.2,2488.1,3.2078]
[1749267181681,0.80920482,2488.2,2488.1,3.2078]
[1749267181876,0.80322,2488.1,2487.9,5.69326]
[1749267182071,1.50382,2488.1,2487.9,5.69326]
[1749267182382,0.7006,2488.1,2488.0,0.80325]
[1749267184382,0.7006,2488.1,2487.9,6.34666]
[1749267184565,0.7006,2488.1,2488.0,0.80325]
[1749267185272,0.7006,2488.1,2487.9,5.5434]
[1749267185472,0.7006,2488.1,2488.0,0.80325]
[1749267187574,8.9084,2488.1,2487.5,3.9327855]
[1749267187780,8.9084,2488.1,2487.3,3.2078]
[1749267187781,0.80344,2487.4,2487.3,3.2078]
[1749267187978,0.80352,2487.2,2487.0,3.2078]
[1749267188577,0.80354,2487.1,2487.0,3.2078]
[1749267189174,1.45893,2487.2,2487.0,3.2078]
[1749267189377,0.6554,2487.2,2487.0,3.2078]
[1749267189674,0.6554,2487.2,2487.0,4.01135]
[1749267189876,0.6554,2487.2,2487.1,0.80354]
[1749267190580,0.8034,2487.6,2487.4,0.80343]
[1749267190781,0.6473,2487.6,2487.4,0.80343]
[1749267190981,0.6473,2487.6,2487.5,0.80341]
[1749267191184,0.6473,2487.6,2487.4,0.80342]
[1749267191776,0.6473,2487.6,2487.5,0.80341]
[1749267192275,1.3863,2488.0,2487.7,0.80335]
[1749267192474,0.6537,2487.9,2487.7,0.80335]
[1749267192681,1.45699,2487.9,2487.7,0.80335]
[1749267192881,0.6537,2487.9,2487.7,0.80335]
[1749267193180,1.45699,2487.9,2487.7,0.80335]
[1749267194079,0.80333,2487.8,2487.6,4.01116]
[1749267194280,1.45699,2487.9,2487.6,8.89416]
[1749267194681,1.45699,2487.9,2487.7,0.80334]
[1749267194887,1.45699,2487.9,2487.6,8.89416]
[1749267195385,1.45699,2487.9,2487.6,8.0908]
[1749267195587,1.45699,2487.9,2487.6,8.89416]
[1749267196290,0.80332,2487.8,2487.6,8.89416]
[1749267196885,1.457,2487.9,2487.6,8.89416]
[1749267197490,0.80332,2487.8,2487.6,8.89416]
[1749267197789,0.80331,2487.8,2487.6,8.89416]
[1749267197992,1.457,2487.9,2487.6,8.0908]
[1749267198284,0.80331,2487.8,2487.6,8.89417]
[1749267198590,0.80331,2487.8,2487.6,8.0908]
[1749267198793,0.80331,2487.8,2487.6,8.89416]
[1749267199785,0.80331,2487.8,2487.7,3.2078]
[1749267200494,0.6537,2487.9,2487.7,3.2078]
[1749267200786,0.6456,2488.1,2487.7,3.2078]
[1749267200992,2.12293,2488.1,2487.9,0.80327]
[1749267201581,0.80325,2488.0,2487.8,0.80329]
[1749267201790,1.3197,2488.1,2487.7,4.4951]
[1749267201791,2.12294,2488.1,2487.7,4.4951]
[1749267202092,2.12294,2488.1,2487.9,0.80328]
[1749267202795,2.12293,2488.1,2487.9,0.80327]
[1749267202994,2.12294,2488.1,2487.9,0.80328]
[1749267203793,1.3197,2488.1,2488.0,0.80325]
[1749267204094,2.12293,2488.1,2487.9,0.80325]
[1749267204295,1.3197,2488.1,2488.0,0.80325]
[1749267204592,0.80922482,2488.2,2488.0,0.80325]
[1749267204593,0.00602482,2488.2,2488.1,0.80322]
[1749267204790,0.00602482,2488.2,2488.1,2.73352]
[1749267205193,0.00602482,2488.2,2488.1,7.73352]
[1749267206087,1.3282,2489.1,2488.1,7.73352]
[1749267206088,1.3282,2489.1,2488.2,2.00794]
[1749267206294,2.0277,2489.1,2488.8,0.80297]
[1749267206492,2.83062,2489.1,2488.8,0.80297]
[1749267206999,0.80293,2489.0,2488.8,0.80297]
[1749267207297,2.83663482,2489.1,2488.8,0.80297]
[1749267207696,2.83664482,2489.1,2488.8,0.80297]
[1749267207995,0.80293,2489.0,2488.7,6.34552482]
[1749267208290,0.80294,2489.0,2488.8,0.80298]
[1749267208497,2.03372482,2489.1,2488.8,0.80296]
[1749267208690,0.80294,2489.0,2488.7,6.34552482]
[1749267209787,0.80299,2488.8,2488.7,4.88902482]
[1749267209986,0.80299,2488.8,2488.7,0.00602482]
[1749267211593,0.80299,2488.8,2488.3,4.882]
[1749267211594,0.80312,2488.4,2488.3,4.882]
[1749267212001,6.57662,2488.7,2488.0,4.882]
[1749267212200,0.80322,2488.1,2488.0,4.882]
[1749267212601,0.80325,2488.0,2487.9,3.2078]
[1749267212901,2.16445,2488.0,2487.9,4.882]
[1749267214197,1.3612,2488.0,2487.9,4.882]
[1749267214590,1.9974,2488.3,2487.6,3.2078]
[1749267214798,1.3342,2487.9,2487.7,4.874]
[1749267215299,2.1375,2487.9,2487.8,4.874]
[1749267215599,2.13748,2487.9,2487.8,4.874]
[1749267217410,1.3342,2487.9,2487.8,4.874]
[1749267217700,1.3342,2487.9,2487.8,5.67731]
[1749267217901,0.0328,2488.1,2488.0,0.80325]
[1749267218294,0.0328,2488.1,2487.9,3.2078]
[1749267218295,0.80322,2488.1,2487.9,4.01106]
[1749267218494,1.4849,2488.2,2487.9,4.01106]
[1749267218695,0.80322,2488.1,2487.9,4.01106]
[1749267218904,1.9519,2488.2,2487.9,3.2078]
[1749267219202,0.80322,2488.1,2487.9,4.01107]
[1749267219602,1.9519,2488.2,2487.9,3.2078]
[1749267219804,0.80323,2488.1,2487.9,4.01108]
[1749267220103,2.19603,2488.1,2487.9,4.01108]
[1749267220307,2.19603,2488.1,2487.9,3.2078]
[1749267220603,2.19603,2488.1,2487.9,4.01108]
[1749267221203,1.51769,2488.2,2488.0,0.80325]
[1749267221404,0.7145,2488.2,2488.1,0.80322]
[1749267221706,1.51768,2488.2,2488.0,0.80323]
[1749267222207,1.51768,2488.2,2487.9,4.01106]
[1749267222609,0.7145,2488.2,2488.1,0.80322]
[1749267224003,0.6817,2488.2,2488.1,0.80322]
[1749267224303,0.6632,2488.3,2488.2,0.80318]
[1749267224508,1.3928,2488.4,2488.3,0.80315]
[1749267225107,1.351,2488.6,2488.2,0.80315]
[1749267225310,0.8031,2488.5,2488.3,0.80314]
[1749267225803,1.351,2488.6,2488.1,0.8032]
[1749267226010,0.80321,2488.2,2488.1,4.875]
[1749267226405,0.80318,2488.2,2488.1,4.875]
[1749267227008,0.80317,2488.3,2488.1,5.67822]
[1749267227207,1.3014,2488.4,2488.1,4.875]
[1749267227403,0.80318,2488.2,2488.1,4.875]
[1749267228312,0.80322,2488.1,2487.9,4.01106]
[1749267228506,1.49202,2488.1,2488.0,4.875]
[1749267228718,0.80325,2488.0,2487.9,3.2078]
[1749267228911,2.08295,2488.0,2487.9,8.0828]
[1749267229213,0.80329,2487.9,2487.7,0.80332]
[1749267229406,2.08299,2487.9,2487.7,0.80332]
[1749267229807,1.2797,2487.9,2487.8,5.67831]
[1749267230013,1.43916,2488.0,2487.8,5.67831]
[1749267230210,0.6359,2488.0,2487.9,0.80328]
[1749267231714,0.6888,2488.1,2488.0,0.80325]
[1749267231911,1.49202,2488.1,2487.9,0.80326]
[1749267232408,0.6888,2488.1,2487.8,4.875]
[1749267232609,1.49202,2488.1,2487.9,0.80326]
[1749267232813,1.49202,2488.1,2487.9,4.01106]
[1749267233411,0.6888,2488.1,2488.0,0.80325]
[1749267233612,1.49202,2488.1,2487.9,4.01106]
[1749267235618,1.49202,2488.1,2487.9,0.80326]
[1749267237713,0.6888,2488.1,2488.0,0.80325]
[1749267240417,1.49202,2488.1,2487.9,0.80326]
[1749267240817,0.6888,2488.1,2488.0,0.80325]
[1749267242411,1.49202,2488.1,2488.0,0.80325]
[1749267242612,1.49202,2488.1,2487.9,1.46276]
[1749267243021,1.49202,2488.1,2488.0,0.80325]
[1749267243324,0.6888,2488.1,2488.0,0.80325]
[1749267245423,1.49202,2488.1,2488.0,0.80325]
[1749267245624,0.6888,2488.1,2488.0,0.80325]
[1749267246426,2.74476,2488.3,2487.9,0.6595]
[1749267246620,2.6371,2488.3,2488.2,0.80318]
[1749267246820,3.44025,2488.3,2488.2,0.80318]
[1749267247022,0.80318,2488.2,2487.9,0.6595]
[1749267247221,0.80318,2488.2,2488.0,0.80322]
[1749267247526,2.6371,2488.3,2487.9,0.6595]
[1749267247727,0.8032,2488.2,2488.0,0.80322]
[1749267248528,0.80322,2488.1,2488.0,0.80322]
[1749267249622,2.1176,2488.2,2488.0,0.80322]
[1749267250428,1.3144,2488.2,2488.1,0.80322]
[1749267251229,2.11758,2488.2,2488.0,0.80323]
[1749267251435,1.3144,2488.2,2488.1,0.80322]
[1749267251721,1.3574,2488.3,2488.2,0.80318]
[1749267252023,2.45919985,2488.3,2488.2,0.80318]
[1749267252231,3.26234985,2488.3,2488.1,0.80319]
[1749267252527,1.3574,2488.3,2487.8,8.7386]
[1749267252717,3.46497,2488.3,2488.1,0.8032]
[1749267252920,0.80318,2488.2,2488.0,0.80322]
[1749267253120,0.80318,2488.2,2488.0,5.67122]
[1749267253322,0.80318,2488.2,2488.1,0.80322]
[1749267253523,0.80318,2488.2,2488.0,5.67123]
[1749267253921,2.06608,2488.2,2488.0,5.67123]
[1749267254324,1.2629,2488.2,2488.0,4.868]
[1749267254524,1.2629,2488.2,2488.1,0.80322]
[1749267254822,2.16055,2488.3,2488.1,0.80319]
[1749267255019,1.3574,2488.3,2488.2,0.80318]
[1749267255223,3.26244215,2488.3,2488.1,0.80321]
[1749267255530,2.16057,2488.3,2488.1,0.80321]
[1749267255728,3.42347,2488.3,2488.1,0.80321]
[1749267255929,2.6203,2488.3,2488.0,4.868]
[1749267256130,0.80322,2488.1,2488.0,4.868]
[1749267260230,2.17,2488.2,2488.0,5.67125]
[1749267260428,0.80321,2488.1,2488.0,5.67125]
[1749267260626,0.80321,2488.1,2488.0,4.868]
[1749267262426,0.80321,2488.1,2488.0,5.67125]
[1749267263228,2.17,2488.2,2488.0,5.67125]
[1749267263633,0.80318,2488.2,2488.1,0.80321]
[1749267263834,1.3902,2488.3,2488.1,0.80321]
[1749267263835,2.19336,2488.3,2488.1,0.80321]
[1749267264036,1.3902,2488.3,2488.2,0.80318]
[1749267264227,2.4924909,2488.3,2488.2,0.80318]
[1749267264430,2.4924909,2488.3,2488.1,4.011]
[1749267264628,0.80319,2488.2,2488.0,5.67122]
[1749267266336,0.80319,2488.2,2488.1,0.80321]
[1749267268940,2.19337,2488.3,2488.1,0.80321]
[1749267269239,0.80324,2488.1,2487.9,8.87907]
[1749267270034,0.80324,2488.1,2488.0,0.80325]
[1749267270335,1.3902,2488.3,2487.9,8.0758]
[1749267270537,2.19336,2488.3,2488.2,0.80318]
[1749267270736,3.295681,2488.3,2487.9,8.0758]
[1749267271036,2.19336,2488.3,2488.1,0.8032]
[1749267271735,1.3902,2488.3,2487.9,8.0758]
[1749267272035,2.19337,2488.3,2488.1,0.80321]
[1749267273042,1.3902,2488.3,2487.9,8.0758]
[1749267273340,1.3902,2488.3,2488.2,0.80318]
[1749267273541,3.29557533,2488.3,2488.1,0.8032]
[1749267273736,1.3902,2488.3,2488.2,0.80318]
[1749267273942,3.29561927,2488.3,2488.1,0.8032]
[1749267274130,0.7283,2488.3,2488.2,0.80318]
[1749267274335,0.7283,2488.3,2488.2,4.01098]
[1749267275237,0.0328,2488.3,2488.2,4.01098]
[1749267276536,0.6697,2488.8,2488.7,0.80302]
[1749267277348,1.47271,2488.8,2488.6,5.66304]
[1749267278028,1.47271,2488.8,2488.5,3.2078]
[1749267278233,0.80305,2488.6,2488.5,3.2078]
[1749267278433,0.80309,2488.5,2488.2,4.86]
[1749267278639,0.80315,2488.3,2488.2,4.86]
[1749267279238,2.10345,2488.3,2488.2,4.86]
[1749267279840,1.3003,2488.3,2488.2,5.66318]
[1749267280034,1.3003,2488.3,2488.2,4.86]
[1749267280437,0.6387,2488.4,2488.3,0.80315]
[1749267283144,1.3755,2488.7,2488.2,4.86]
[1749267283350,2.0644,2488.7,2488.6,0.80305]
[1749267284346,2.86742,2488.7,2488.4,3.2078]
[1749267284941,2.0644,2488.7,2488.5,0.80306]
[1749267285141,2.0644,2488.7,2488.6,0.80305]
[1749267285847,1.47914,2489.0,2488.7,0.80299]
[1749267286050,0.6566,2488.9,2488.7,0.80299]
[1749267286349,0.803,2488.8,2488.6,5.66204]
[1749267286545,0.803,2488.8,2488.4,3.2078]
[1749267286546,0.80302,2488.7,2488.5,0.80307]
[1749267286744,0.80302,2488.7,2488.5,5.66207]
[1749267286944,2.1798,2488.8,2488.6,0.80305]
[1749267287449,2.1798,2488.8,2488.5,5.66206]
[1749267287751,1.2705,2488.7,2488.5,5.66206]
[1749267287945,2.07352,2488.7,2488.5,5.66206]
[1749267288950,1.2705,2488.7,2488.5,5.66206]
[1749267289151,1.2705,2488.7,2488.6,0.80305]
[1749267290353,1.2705,2488.7,2488.5,5.66206]
[1749267291053,2.07352,2488.7,2488.5,5.66206]
[1749267291356,1.2705,2488.7,2488.6,0.80305]
[1749267292855,2.07354,2488.7,2488.5,0.80307]
[1749267293053,2.07354,2488.7,2488.6,4.859]
[1749267295168,1.2705,2488.7,2488.6,5.66205]
[1749267295667,0.80301,2488.8,2488.6,5.66205]
[1749267297172,2.10991,2488.8,2488.6,5.66205]
[1749267297972,1.3069,2488.8,2488.7,0.80301]
[1749267298269,2.10988,2488.8,2488.6,5.66203]
[1749267302376,1.3069,2488.8,2488.7,0.803]
[1749267302566,0.6566,2488.9,2488.8,0.80296]
[1749267305574,0.6762,2489.0,2488.9,0.80293]
[1749267305774,4.01669482,2489.1,2488.9,0.80293]
[1749267306171,3.21382482,2489.1,2489.0,0.8029]
[1749267306375,3.21382482,2489.1,2488.7,0.6471]
[1749267306779,3.21382482,2489.1,2488.8,0.80294]
[1749267306971,0.80291,2489.0,2488.8,0.80294]
[1749267307172,2.14331,2489.0,2488.8,0.80294]
[1749267307374,0.6662,2488.9,2488.8,0.80294]
[1749267308174,0.6662,2488.9,2488.8,5.65494]
[1749267309573,4.01670482,2489.1,2488.9,0.80291]
[1749267309868,0.6434,2489.0,2488.9,0.80291]
[1749267312281,0.6434,2489.0,2488.8,4.852]
[1749267312480,0.6434,2489.0,2488.9,0.80293]
[1749267313181,1.9989,2489.0,2488.9,0.80293]
[1749267313481,1.9989,2489.0,2488.8,4.852]
[1749267313683,2.80181,2489.0,2488.8,5.65494]
[1749267314980,1.9989,2489.0,2488.9,0.80293]
[1749267315584,0.6434,2489.0,2488.9,0.80293]
[1749267318680,3.21382482,2489.1,2489.0,0.8029]
[1749267318977,0.00602482,2489.1,2489.0,4.0107]
[1749267319584,0.00602482,2489.1,2489.0,5.4105]
[1749267322382,0.00602482,2489.1,2489.0,4.0107]
[1749267322586,0.00602482,2489.1,2489.0,8.8617]
[1749267324685,0.00602482,2489.1,2489.0,4.0107]
[1749267324991,0.80889482,2489.1,2489.0,3.2078]
[1749267325291,0.80889482,2489.1,2488.9,4.851]
[1749267325292,0.8029,2489.0,2488.9,4.851]
[1749267325490,3.4554,2489.0,2488.9,4.851]
[1749267325688,2.6525,2489.0,2488.9,4.851]
[1749267325995,1.3541,2489.0,2488.9,5.65393]
[1749267326992,1.3541,2489.0,2488.9,4.851]
[1749267327391,1.3541,2489.0,2488.9,5.65393]
[1749267330088,1.3541,2489.0,2488.9,4.851]
[1749267330289,2.157,2489.0,2488.9,4.851]
[1749267330488,1.3541,2489.0,2488.9,5.65393]
[1749267333998,0.00602482,2489.1,2489.0,0.8029]
[1749267334197,0.00602482,2489.1,2489.0,4.0107]
[1749267334396,0.00602482,2489.1,2489.0,4.6695]
[1749267335398,3.2078,2489.8,2489.5,0.80272]
[1749267335695,0.80273,2489.6,2489.3,8.0588]
[1749267335991,0.80277,2489.4,2489.3,8.0588]
[1749267336196,0.80277,2489.4,2489.3,4.851]
[1749267336395,1.28832482,2489.6,2489.2,4.851]
[1749267336588,0.6518,2489.3,2489.2,5.65383]
[1749267337099,2.5663,2489.3,2489.2,5.65383]
[1749267337591,3.3691,2489.3,2489.2,4.851]
[1749267337796,2.5663,2489.3,2489.2,4.851]
[1749267338597,2.5663,2489.3,2489.2,4.844]
[1749267339297,3.3691,2489.3,2489.2,4.844]
[1749267340898,2.5663,2489.3,2489.2,4.844]
[1749267341198,0.00602482,2489.6,2489.5,0.80274]
[1749267346698,0.00602482,2489.6,2489.5,1.46104]
[1749267348301,0.00602482,2489.6,2489.5,0.80274]
[1749267361610,5.00602482,2489.6,2489.1,3.21382482]
[1749267361816,0.80283,2489.2,2489.1,0.00602482]
[1749267362113,1.93285134,2489.2,2489.1,0.00602482]
[1749267362412,8.88475134,2489.2,2489.1,0.00602482]
[1749267362715,3.88464654,2489.2,2489.1,0.00602482]
[1749267363013,2.75473,2489.2,2489.1,0.00602482]
[1749267363205,8.8849465,2489.2,2489.1,0.00602482]
[1749267363411,7.75473,2489.2,2489.1,0.00602482]
[1749267363912,8.88449378,2489.2,2489.1,0.00602482]
[1749267364318,8.88452041,2489.2,2489.1,0.00602482]
[1749267364519,2.75473,2489.2,2489.1,0.00602482]
[1749267367115,5.96253,2489.2,2489.1,0.00602482]
[1749267367511,10.96253,2489.2,2489.1,0.00602482]
[1749267367913,12.09126523,2489.2,2489.1,0.00602482]